Cogmind - Beta 13 @@@ ROGUE MODE // 2024.04.11 @ 00:12:15 // Winter2022/Polymind Player: Nebula avali Result: Destroyed by S-10 Pest with Light Assault Rifle Performance ------------- Evolutions (0) 0 Regions Visited (2) 400 Robots Destroyed (0) 0 Value Destroyed (0) 0 Prototype IDs (0) 0 Alien Tech Used (0) 0 Bonus (550) 550 TOTAL SCORE: 860 Bonus ------- Polymind Skill 550 Cogmind --------- Core Integrity 0/250 Matter 0/0 Energy 50/50 System Corruption 0% Temperature Cool (0) Movement Rolling (80) Location -10/Subcaves Parts ------- > --- POWER (1) -------- Light Ion Engine > --- PROPULSION (2) --- Wheel Wheel > --- UTILITY (0) ------ (None) > --- WEAPON (1) ------- Multitool > --- INVENTORY (1) ---- (None) Peak State ------------ > --- POWER ------------ Light Ion Engine > --- PROPULSION ------- Wheel Wheel > --- UTILITY ---------- Improved Terrain Scanner Seismic Detector > --- WEAPON ----------- Mining Laser > --- INVENTORY -------- (None) [Rating: 8] Favorites ----------- Power Light Ion Engine Engine Light Ion Engine Propulsion Wheel Wheel Wheel Hover Unit Hover Unit Utility Improved Terrain Scanner Device Improved Terrain Scanner Processor Visual Processing Unit Weapon Mining Laser Special Weapon Mining Laser Build | -11 -10 -10 ------- Run | Yrd Mat Sub Slots Evolved . | . . . Power . | . . . Propulsion . | . . . Utility . | . . . Weapon . | . . . Parts Attached . | . . . Power . | . . . Engine . | . . . Core . | . . . Reactor . | . . . Propulsion . | . . . Treads . | . . . Leg . | . . . Wheel . | . . . Hover . | . . . Flight . | . . . Utility . | . . . Device . | . . . Storage . | . . . Processor . | . . . Hackware . | . . . Protection . | . . . Artifact . | . . . Weapon . | . . . Energy Gun . | . . . Energy Cannon . | . . . Ballistic Gun . | . . . Ballistic Cannon . | . . . Launcher . | . . . Special Weapon . | . . . Impact Weapon . | . . . Slashing Weapon . | . . . Piercing Weapon . | . . . Special Melee Weapon . | . . . Unidentified Prototypes . | . . . Parts Lost 3 | . 3 . Power . | . . . Propulsion 1 | . 1 . Utility 1 | . 1 . Weapon 1 | . 1 . Highest Loss Streak 3 | . 3 . To Critical Strikes . | . . . Average Slot Usage (%) 73 | . 91 38 Engine 12 | . 14 8 Wheel 21 | . 23 16 Hover 3 | . 5 . Device 21 | . 27 9 Processor 4 | . 7 . Special Weapon 8 | . 11 3 Naked Turns 48 | . 6 42 Heaviest Build 6 | 6 6 5 Greatest Support 20 | 20 20 20 Greatest Overweight (x) . | . . . Average Overweight (x) . | . . . Largest Inventory Capacity 1 | . . 1 Average Capacity . | . . . Most Carried . | . . . Average Carried . | . . . Final Capacity 1 | . . 1 Final Carried . | . . . Class Distribution -------------------- 53% | Tunneler 21% | Cogmind 17% | Watcher 7% | Artisan Dominant Class ---------------- Tunneler | -10/Materials Cogmind | -10/Subcaves Resources | -11 -10 -10 ----------- Run | Yrd Mat Sub Matter Collected . | . . . Remotely . | . . . Salvage Created . | . . . Parts . | . . . Haulers Intercepted . | . . . Recyclers Shooed . | . . . Parts Field Recycled . | . . . Retrieved Matter . | . . . Parts Self-Destructed 2 | . . 2 Prevented . | . . . Kills | -11 -10 -10 ------- Run | Yrd Mat Sub Combat Hostiles Destroyed . | . . . Classes Destroyed . | . . . Best Kill Streak . | . . . Combat Bots Only . | . . . Max Kills in Single Turn . | . . . Gunslinging . | . . . Exploded . | . . . Melee . | . . . Uniques/NPCs Destroyed . | . . . Combat | -11 -10 -10 -------- Run | Yrd Mat Sub Hostile Shots Fired 90 | . 69 21 Missed 39 | . 30 9 Damage Taken 452 | . 307 145 Core 252 | . 137 115 Absorbed by Shields . | . . . Core Remaining (%) 100 | 100 . . Volleys Fired 4 | . 4 . Largest 1 | . 1 . Hottest 100 | . 100 . Shots Fired 4 | . 4 . Gun . | . . . Cannon . | . . . Launcher . | . . . Special 4 | . 4 . Kinetic . | . . . Thermal 4 | . 4 . Explosive . | . . . Electromagnetic . | . . . Robot Hit Streak . | . . . Robot Miss Streak . | . . . Penetration Max . | . . . Secondary Targets . | . . . Shots Hit Robots . | . . . Core Hits 1 | . . 1 Critical Kills . | . . . Critical Parts Destroyed . | . . . Critical Strikes . | . . . Melee Attacks . | . . . Impact . | . . . Slashing . | . . . Piercing . | . . . Sneak Attacks . | . . . Combat Hostiles . | . . . Follow-up Attacks . | . . . Damage Inflicted 23 | . . 23 Guns . | . . . Cannons . | . . . Explosions . | . . . Melee . | . . . Ramming 23 | . . 23 Kinetic . | . . . Thermal . | . . . Explosive . | . . . Electromagnetic . | . . . Impact . | . . . Slashing . | . . . Piercing . | . . . Highest Corruption . | . . . Average Corruption . | . . . Corruption Purged . | . . . Corruption Blocked . | . . . Overload Shots . | . . . Overflow Damage . | . . . Projectiles . | . . . Explosions . | . . . Melee . | . . . Knockbacks 1 | . . 1 Impact 1 | . . 1 Kinetic . | . . . Secondary . | . . . Self-Inflicted Damage 10 | . . 10 Shots . | . . . Rammed 10 | . . 10 Targets Rammed 10 | . . 10 Kicked . | . . . Crushed . | . . . Highest Temperature 215 | . 215 . Average Temperature 122 | . 122 . Received Heat Transfer 30 | . . 30 Siege Activations . | . . . Robots Corrupted . | . . . Combat Hostiles . | . . . Parts Fried . | . . . Impact Corruptions . | . . . Robots Melted . | . . . Combat Hostiles . | . . . Parts Melted . | . . . Heat Transferred . | . . . Parts Sabotaged . | . . . Parts Stolen . | . . . Parts Stripped . | . . . Power Chain Reactions . | . . . Alert | -11 -10 -10 ------- Run | Yrd Mat Sub Peak Influence 47 | . 47 . Initial . | . . . Average 26 | . 28 . Maximum Alert Level . | . . . Low Security (%) 100 | 100 100 . Level 1 . | . . . Level 2 . | . . . Level 3 . | . . . Level 4 . | . . . Level 5 . | . . . High Security . | . . . Max Security . | . . . Squads Dispatched . | . . . Investigation . | . . . Extermination . | . . . Reinforcement . | . . . Assault . | . . . Garrison . | . . . Intercept . | . . . Searches Triggered . | . . . Construction Impeded . | . . . Haulers Reinforced . | . . . Active Scanning Responses . | . . . Cargo Convoy Interrupts . | . . . Stealth | -11 -10 -10 --------- Run | Yrd Mat Sub Distress Signals 1 | . 1 . Communications Jammed . | . . . Distress Signals . | . . . Times Spotted 17 | . 9 8 Peak Tracking Total 5 | . 4 5 Tactical Retreats 2 | . . 2 Traps | -11 -10 -10 ------- Run | Yrd Mat Sub Traps Triggered . | . . . Indirectly . | . . . Trap Hack Attempts . | . . . Triggered . | . . . Disarmed . | . . . Reprogrammed . | . . . Reused . | . . . Traps Extracted . | . . . Installed . | . . . Triggered . | . . . Machines | -11 -10 -10 ---------- Run | Yrd Mat Sub Machines Disabled . | . . . Max in Single Turn . | . . . Machines Repaired . | . . . Machines Dismantled . | . . . Machines Sabotaged . | . . . Overloaded Fab Kills . | . . . Hacking | -11 -10 -10 --------- Run | Yrd Mat Sub Machines Accessed . | . . . Terminals . | . . . Fabricators . | . . . Repair Stations . | . . . Recycling Units . | . . . Scanalyzers . | . . . Garrison Access . | . . . Total Hacks . | . . . Successful . | . . . Failed . | . . . Catastrophic . | . . . Database Lockouts . | . . . Manual . | . . . Terminals . | . . . Fabricators . | . . . Repair Stations . | . . . Recycling Units . | . . . Scanalyzers . | . . . Garrison Access . | . . . Terminal Hacks . | . . . Fabricator Hacks . | . . . Repair Station Hacks . | . . . Recycling Unit Hacks . | . . . Scanalyzer . | . . . Garrison Access Hacks . | . . . Unauthorized Hacks . | . . . Terminals . | . . . Fabricators . | . . . Repair Stations . | . . . Recycling Units . | . . . Scanalyzers . | . . . Garrison Access . | . . . Data Cores Recovered . | . . . Used . | . . . Hacking Detections . | . . . Full Trace Events . | . . . Feedback Events . | . . . Feedback Blocked . | . . . Robot Schematics Acquired . | . . . Robots Built . | . . . Authchips . | . . . Time . | . . . Total Robot Build Rating . | . . . Part Schematics Acquired . | . . . Parts Built . | . . . Authchips . | . . . Time . | . . . Total Part Build Rating . | . . . Parts Repaired . | . . . Time . | . . . Parts Recycled . | . . . Recycled Matter . | . . . Retrieved Matter . | . . . Retrieved Components . | . . . Parts Scanalyzed . | . . . Part Schematics Acquired . | . . . Parts Damaged . | . . . Bothacking | -11 -10 -10 ------------ Run | Yrd Mat Sub Used RIF Installer . | . . . Robots Hacked 1 | . 1 . Non-combat 1 | . 1 . Combat . | . . . Robot Hacks Applied 2 | . 2 . map_route 1 | . 1 . mark_security 1 | . 1 . Relay Couplers Released . | . . . Fabnet Peak Effective % . | . . . Robots Rewired . | . . . Allies Hacked . | . . . Hacks Repelled . | . . . Allies | -11 -10 -10 -------- Run | Yrd Mat Sub Total Allies . | . . . Largest Group . | . . . Highest-Rated Group . | . . . Highest-Rated Ally . | . . . Total Orders . | . . . Ally Attacks . | . . . Total Damage . | . . . Kills . | . . . Allies Corrupted . | . . . Allies Melted . | . . . Intel | -11 -10 -10 ------- Run | Yrd Mat Sub Robot Analysis Total 3 | 1 1 1 Derelict Logs Recovered 2 | . . 2 Drone Launches . | . . . Drone Recoveries . | . . . Exploration | -11 -10 -10 ------------- Run | Yrd Mat Sub Turns Passed 228 | 9 146 73 Spaces Moved 205 | 15 113 77 Core 72 | 9 12 51 Treads . | . . . Legs . | . . . Wheels 122 | 6 90 26 Hover 11 | . 11 . Flight . | . . . Fastest Speed 50 | 50 50 50 Average Speed 68 | 62 74 60 Slowest Speed 80 | 80 80 80 Overloaded Moves . | . . . Propulsion Burnouts . | . . . Robots Hopped . | . . . Cave-ins Triggered . | . . . Exploration Rate (%) 13 | 2 29 9 Regions Visited 2 Branch Regions 1 Pre-discovered Areas . | . . . Known Exits Taken . | . . . Unknown Exits Taken 2 | 1 1 . Scrap Searched . | . . . Spaces Dug 3 | . 3 . Terrain Destroyed 3 | . 3 . Melee . | . . . Projectile 3 | . 3 . AOE . | . . . Terrain Rammed . | . . . Walls Destroyed . | . . . Machines Disabled . | . . . Actions | -11 -10 -10 --------- Run | Yrd Mat Sub Total 280 | 14 162 104 Wait 63 | . 46 17 Move 203 | 14 112 77 Hop . | . . . Pick Up . | . . . Fast Attach . | . . . Attach . | . . . Detach . | . . . Swap . | . . . Drop . | . . . Fire 4 | . 4 . Melee . | . . . Ram 10 | . . 10 Kick . | . . . Crush . | . . . Escape Stasis . | . . . Rewire . | . . . Trap . | . . . Miscellaneous . | . . . Route ------- -11/Scrapyard -10/Materials -10/Subcaves (discovered 1 exit: [*Mat]) History --------- Turn | Location | Event 1 | -11/Scrapyard | Discovered new exit (range 3) 10 | -11/Scrapyard | Entered Materials 75 | -10/Materials | Discovered new exit (range 3) 153 | -10/Materials | Core integrity fell below 50% 156 | -10/Materials | Entered Subcaves 160 | -10/Subcaves | Discovered new exit (range 14) 165 | -10/Subcaves | Learned 2 Materials zone layouts 184 | -10/Subcaves | Lost 3 parts (1n1u1w) 194 | -10/Subcaves | Core integrity fell below 20% 207 | -10/Subcaves | Learned Materials trap positions 219 | -10/Subcaves | Shifting Twisted Machinery released Sub. Optics 229 | -10/Subcaves | Destroyed by S-10 Pest with Light Assault Rifle Last Messages --------------- 00153_ Mining Laser destroyed. LOCATION=UNKNOWN AMBIENT_HEAT=-10 GOAL=ESCAPE 00160_ EXIT=FOUND 00165_ Acquired derelict log, extracted data. Data stored: Materials zone layouts (x2). 00171_ Released control of T-07 Excavator. 00172_ T-07 Excavator reactivates. 00185_ Slammed into UB-4XL(R). 00191_ UB-4XL(R) knocked back. 00207_ Acquired derelict log, extracted data. Data stored: Materials trap records. 00213_ Took control of O2-0MN(u). 00213_ Extracted analysis data for Artisan. Sub. Optics falls loose from the Twisted Machinery. 00222_ Slammed into S-10 Pest. 00223_ Multitool broken. 00223_ Destabilizing: Short circuit. 00224_ Slammed into S-10 Pest. Map ----- +----------------------------------------------------+ | ?????????????????????????????????????????????????? | | ?????????????????????????????????????????????????? | | ?????????????????????????????????????????????????? | | ?????????????????????????????????????????????????? | | ?????????????????????????????????????????????????? | | ?????????????????????????????????????????????????? | | ?????????????????????????????????????????????????? | | ?????????????????????????????????????????????????? | | ?????????????????????????????????????????????????? | | ?????????????????????????????????????????????????? | | ?????????????????????????????????????????????????? | | ?????????????????????????????????????????????????? | | ?????????????????????????? ??????????????????????? | | ?????????????????????????? #????????????????????? | | ????????????????????????" ##???????????????????? | | ?????????????????????? "" #???????????????????? | | ?????????????????????? "" #????????#??????????? | | ???????????????????#"""""" " #??????# ?????????? | | ???????????????????#"""" """ #?????# ?????????? | | ???????????????????# """"" #????? #?????????? | | ????????????????????#"""" " #????? ####??????? | | ???????????????" "#"" %""#?????? ##?????? | | ?????????????????"""" % "#?????? #?????? | | ????????????????""" # %#####????# ??????? | | ????????????????"#!# ###s%%##"####?# ???????? | | ???????????????????#??# u ""### #????????? | | ??????????????????????### # ""##"" #????????? | | ????????????????????????#### """"" ##???????? | | ?????????????????????????# "" #???????? | | ???????????????????# #????????? | | ????????????????????# #### #????????? | | ????????????????????##########??## # ##???????? | | ?????????????????????????????????## # #???????? | | ??????????????????????????????????#### ###?????? | | ???????????????????????????????????## ## ##????? | | ???????????????????????????????????# ^ #??? ? | | ???????????????????????????????????# ##?? # | | ???????????????????????????????????# ##### #? | | ??????????????????????????????????## ### ## | | ??????????????????????????????????# | | ??????????????????????????????????# # | | ??????????????????????????????????## ## | | ???????????????????????????????????# ## #? | | ??????????????????????????????????## #?? #? | | ??????????????????????????????????# ^ #????? | | ??????????????????????????????????# #????? | | ??????????????????????????????????# ## #????? | | ?????????????????????????????????## ##?# #???? | | ?????????????????????????????????# #???# ?? | | ?????????????????????????????????# ####?# | +----------------------------------------------------+ Best States ------------- Heat Dissipation 25 Energy Generation 15 Energy Capacity 100 Sight Range 18 Robot Scan Range 14 Terrain Scan Range 16 Terrain Scan Density 10 Evasion (%) 50 Item Schematics ----------------- None Robot Schematics ------------------ None Fabricated ------------ Nothing Alien Tech Used ----------------- None Achievements -------------- None Challenges ------------ None Polymind | -11 -10 -10 ---------- Run | Yrd Mat Sub Hosts 4 | 1 2 1 Combat Hostiles . | . . . Allies . | . . . Unique Host Classes 3 | 1 1 1 Average Host Suspicion 74 | . 81 51 Unsuspicious Activity 2 | 2 . . Returns to Shadow . | . . . Fuzzy Dispatches . | . . . Protomatter Created 4 | . 4 . Used 32 | 5 17 10 Decayed . | . . . Highest Spend 12 | 5 12 10 Game ------ Seed ParticleAdvancedMaul Manual? 0 Play Time 00:04:51 Cumulative 29.4 hours Start 2024.04.11 @ 00:08:42 End 2024.04.11 @ 00:12:15 Sessions 1 Manual Loads 0 Difficulty Rogue Special Mode Winter2022/Polymind Game No. 38 Rogue 37 Adventurer 1 Explorer 0 Win Type - Total 1 Types 1/0/0/0/0/0/0/0/0 Lore% 18 Gallery% 42 Achievement% 34 Wizard Run 0 Options --------- Layout 0 ASCII 0 Keyboard 0 Movement Mouse Keybinds 0 Fullscreen 1 Font 18/SmallcapsGlow Map View 76x50 Zoom Use 0% Tactical HUD 1 Map Filters NONE Filters NONE Steam 1 RUN: d6c6268c-92f4-4905-95b5-895223b5541d